[Event "*** SCC Grand Prix: Titled Tuesday Blitz"]
[Site "Chess.com"]
[Date "2020.07.07"]
[Round "10"]
[White "cukin84"]
[Black "Sacbutt"]
[Result "0-1"]
[WhiteElo "2174"]
[BlackElo "2307"]
[TimeControl "180+1"]
[EndTime "11:57:58 PDT"]
[Termination "Sacbutt won by resignation"]

1. e4 {[%clk 0:03:00.9]} 1... d5 {[%clk 0:02:58.8]} 2. exd5 {[%clk 0:03:00.1]}
2... Qxd5 {[%clk 0:02:59.7]} 3. Nc3 {[%clk 0:02:58.5]} 3... Qd6 {[%clk
0:02:59.7]} 4. Nf3 {[%clk 0:02:56.2]} 4... Nf6 {[%clk 0:02:56.9]} 5. d4 {[%clk
0:02:55.7]} 5... c6 {[%clk 0:02:57]} 6. g3 {[%clk 0:02:55.2]} 6... Bg4 {[%clk
0:02:56.4]} 7. Bg2 {[%clk 0:02:52.5]} 7... e6 {[%clk 0:02:55.9]} 8. Bf4 {[%clk
0:02:51.2]} 8... Qd8 {[%clk 0:02:55]} 9. O-O {[%clk 0:02:48.6]} 9... Bd6 {[%clk
0:02:54.8]} 10. Be5 {[%clk 0:02:42.7]} 10... O-O {[%clk 0:02:46.6]} 11. Qe1
{[%clk 0:02:38.6]} 11... Bb4 {[%clk 0:02:39.9]} 12. Rd1 {[%clk 0:02:29.5]} 12...
Nbd7 {[%clk 0:02:36.7]} 13. Bf4 {[%clk 0:02:27]} 13... Nd5 {[%clk 0:02:33.6]}
14. Bd2 {[%clk 0:02:25]} 14... Nxc3 {[%clk 0:02:20.9]} 15. bxc3 {[%clk
0:02:24.4]} 15... Be7 {[%clk 0:02:12]} 16. h3 {[%clk 0:02:22.9]} 16... Bh5
{[%clk 0:02:10.8]} 17. g4 {[%clk 0:02:22.5]} 17... Bg6 {[%clk 0:02:11]} 18. Rb1
{[%clk 0:02:12.4]} 18... Qc7 {[%clk 0:02:04.7]} 19. Qc1 {[%clk 0:02:03.4]} 19...
Bd6 {[%clk 0:01:58.4]} 20. c4 {[%clk 0:02:01.8]} 20... b6 {[%clk 0:01:51.8]} 21.
a4 {[%clk 0:01:49]} 21... Rac8 {[%clk 0:01:47.2]} 22. a5 {[%clk 0:01:47.6]}
22... Rfd8 {[%clk 0:01:33.9]} 23. axb6 {[%clk 0:01:46.5]} 23... axb6 {[%clk
0:01:34.3]} 24. Qb2 {[%clk 0:01:46.6]} 24... c5 {[%clk 0:01:28.7]} 25. d5 {[%clk
0:01:41.4]} 25... exd5 {[%clk 0:01:19.7]} 26. cxd5 {[%clk 0:01:40.8]} 26... Rb8
{[%clk 0:01:08.8]} 27. Rbe1 {[%clk 0:01:36.6]} 27... b5 {[%clk 0:01:06.2]} 28.
Ra1 {[%clk 0:01:32.7]} 28... c4 {[%clk 0:01:03.3]} 29. Ba5 {[%clk 0:01:32]}
29... Nb6 {[%clk 0:00:59.2]} 30. Nd4 {[%clk 0:01:30.4]} 30... Be5 {[%clk
0:00:56.4]} 31. c3 {[%clk 0:01:30.7]} 31... Bxd4 {[%clk 0:00:55.4]} 32. cxd4
{[%clk 0:01:30.3]} 32... Qd7 {[%clk 0:00:53.6]} 33. Bb4 {[%clk 0:01:26.5]} 33...
Nxd5 {[%clk 0:00:52.2]} 34. Bc5 {[%clk 0:01:24.7]} 34... c3 {[%clk 0:00:49.7]}
35. Qb3 {[%clk 0:01:18]} 35... Nf4 {[%clk 0:00:38.8]} 36. Ra7 {[%clk 0:01:07.1]}
36... Qe6 {[%clk 0:00:31.9]} 37. Qxe6 {[%clk 0:00:47.2]} 37... Nxe6 {[%clk
0:00:32.8]} 38. Rc1 {[%clk 0:00:38.8]} 38... c2 {[%clk 0:00:32]} 39. Be7 {[%clk
0:00:33.1]} 39... Rxd4 {[%clk 0:00:28.3]} 40. Bf3 {[%clk 0:00:32.1]} 40... b4
{[%clk 0:00:25.2]} 41. Ra4 {[%clk 0:00:27]} 41... b3 {[%clk 0:00:23.4]} 42. Rxd4
{[%clk 0:00:19.2]} 42... Nxd4 {[%clk 0:00:24.3]} 43. Bd5 {[%clk 0:00:18.6]}
43... Ne2+ {[%clk 0:00:23.5]} 0-1

[Event "*** SCC Grand Prix: Titled Tuesday Blitz"]
[Site "Chess.com"]
[Date "2020.07.07"]
[Round "10"]
[White "amintabatabaei"]
[Black "ArjunErigaisi2003"]
[Result "1-0"]
[WhiteElo "2957"]
[BlackElo "3023"]
[TimeControl "180+1"]
[EndTime "11:57:59 PDT"]
[Termination "amintabatabaei won by resignation"]

1. e4 {[%clk 0:03:00.9]} 1... c5 {[%clk 0:02:59.7]} 2. Nf3 {[%clk 0:02:59.3]}
2... d6 {[%clk 0:02:59.9]} 3. Bb5+ {[%clk 0:02:58.1]} 3... Bd7 {[%clk
0:02:58.6]} 4. Bxd7+ {[%clk 0:02:56.6]} 4... Qxd7 {[%clk 0:02:59.5]} 5. c4
{[%clk 0:02:55.9]} 5... Nc6 {[%clk 0:02:56.4]} 6. Nc3 {[%clk 0:02:54.2]} 6... e5
{[%clk 0:02:54.9]} 7. d3 {[%clk 0:02:51.8]} 7... g6 {[%clk 0:02:53.9]} 8. a3
{[%clk 0:02:52]} 8... Bg7 {[%clk 0:02:50.3]} 9. Rb1 {[%clk 0:02:49.5]} 9... Nge7
{[%clk 0:02:46]} 10. b4 {[%clk 0:02:49.5]} 10... b6 {[%clk 0:02:46.5]} 11. h4
{[%clk 0:02:48.4]} 11... h6 {[%clk 0:02:45.7]} 12. h5 {[%clk 0:02:43.8]} 12...
g5 {[%clk 0:02:45.7]} 13. Nh2 {[%clk 0:02:44.3]} 13... O-O {[%clk 0:02:28.6]}
14. Ng4 {[%clk 0:02:26.7]} 14... cxb4 {[%clk 0:02:05.9]} 15. axb4 {[%clk
0:02:25.2]} 15... Nd4 {[%clk 0:02:06.3]} 16. O-O {[%clk 0:02:09.7]} 16... b5
{[%clk 0:01:57.2]} 17. Ne3 {[%clk 0:02:05.4]} 17... a5 {[%clk 0:01:46]} 18. bxa5
{[%clk 0:01:33.5]} 18... Rxa5 {[%clk 0:01:46.9]} 19. Nxb5 {[%clk 0:01:33.4]}
19... Nxb5 {[%clk 0:01:45.7]} 20. Bd2 {[%clk 0:01:29.2]} 20... Ra3 {[%clk
0:01:31.7]} 21. cxb5 {[%clk 0:01:29.5]} 21... Rxd3 {[%clk 0:01:24.7]} 22. Qc2
{[%clk 0:01:29.7]} 22... Rd4 {[%clk 0:01:15]} 23. b6 {[%clk 0:01:11.2]} 23...
Qb7 {[%clk 0:00:56.3]} 24. Rfc1 {[%clk 0:00:55.9]} 24... Rc8 {[%clk 0:00:52]}
25. Qb2 {[%clk 0:00:45.7]} 25... Rxe4 {[%clk 0:00:34.7]} 26. Rxc8+ {[%clk
0:00:43]} 26... Nxc8 {[%clk 0:00:35.6]} 27. Qc2 {[%clk 0:00:42.9]} 27... Rd4
{[%clk 0:00:21.8]} 28. Nf5 {[%clk 0:00:37.4]} 28... Kf8 {[%clk 0:00:07.5]} 29.
Nxd4 {[%clk 0:00:36.6]} 29... exd4 {[%clk 0:00:08.4]} 30. Ba5 {[%clk 0:00:28.1]}
30... Be5 {[%clk 0:00:05.6]} 31. Qh7 {[%clk 0:00:24.9]} 31... Ke7 {[%clk
0:00:03.7]} 32. Rc1 {[%clk 0:00:21.3]} 32... Qe4 {[%clk 0:00:02.6]} 33. Qxe4
{[%clk 0:00:21]} 1-0

[Event "*** SCC Grand Prix: Titled Tuesday Blitz"]
[Site "Chess.com"]
[Date "2020.07.07"]
[Round "10"]
[White "Rish_97"]
[Black "shnitez"]
[Result "1-0"]
[WhiteElo "2672"]
[BlackElo "2522"]
[TimeControl "180+1"]
[EndTime "11:57:59 PDT"]
[Termination "Rish_97 won on time"]

1. d4 {[%clk 0:03:00.9]} 1... Nf6 {[%clk 0:02:59.2]} 2. Nf3 {[%clk 0:03:01]}
2... e6 {[%clk 0:02:58.3]} 3. c4 {[%clk 0:03:00.7]} 3... b6 {[%clk 0:02:57.8]}
4. g3 {[%clk 0:02:59.8]} 4... Bb7 {[%clk 0:02:57.9]} 5. Bg2 {[%clk 0:03:00.5]}
5... Be7 {[%clk 0:02:58.3]} 6. O-O {[%clk 0:03:00.6]} 6... O-O {[%clk
0:02:57.3]} 7. Re1 {[%clk 0:03:01.1]} 7... d5 {[%clk 0:02:56.9]} 8. cxd5 {[%clk
0:03:01.4]} 8... exd5 {[%clk 0:02:56.5]} 9. Nc3 {[%clk 0:03:01.2]} 9... Nbd7
{[%clk 0:02:55]} 10. Bf4 {[%clk 0:02:57.2]} 10... c5 {[%clk 0:02:54.2]} 11. Rc1
{[%clk 0:02:56.9]} 11... Ne4 {[%clk 0:02:48.7]} 12. Ne5 {[%clk 0:02:39.4]} 12...
Nxe5 {[%clk 0:02:05.6]} 13. Bxe5 {[%clk 0:02:38.4]} 13... Nxc3 {[%clk
0:01:30.6]} 14. bxc3 {[%clk 0:02:26.3]} 14... Rc8 {[%clk 0:01:01.5]} 15. Qa4
{[%clk 0:01:53.8]} 15... a6 {[%clk 0:00:57.8]} 16. Red1 {[%clk 0:01:53.8]} 16...
b5 {[%clk 0:00:54.6]} 17. Qb3 {[%clk 0:01:40.5]} 17... c4 {[%clk 0:00:52.3]} 18.
Qc2 {[%clk 0:01:40.7]} 18... a5 {[%clk 0:00:48.7]} 19. e4 {[%clk 0:01:38.1]}
19... b4 {[%clk 0:00:46.4]} 20. Rb1 {[%clk 0:01:24.4]} 20... Re8 {[%clk
0:00:42.6]} 21. h4 {[%clk 0:01:18.5]} 21... Bf8 {[%clk 0:00:36]} 22. Re1 {[%clk
0:01:09.4]} 22... dxe4 {[%clk 0:00:28.8]} 23. Bxe4 {[%clk 0:01:07.3]} 23... Bxe4
{[%clk 0:00:29.7]} 24. Rxe4 {[%clk 0:01:06.3]} 24... Qd5 {[%clk 0:00:28]} 25.
Rg4 {[%clk 0:00:49]} 25... Rc6 {[%clk 0:00:27.5]} 26. h5 {[%clk 0:00:41.3]}
26... f6 {[%clk 0:00:20.6]} 27. Bf4 {[%clk 0:00:36.3]} 27... Qf3 {[%clk
0:00:20.5]} 28. Qf5 {[%clk 0:00:33]} 28... Qd3 {[%clk 0:00:18.4]} 29. Qd5+
{[%clk 0:00:29.3]} 29... Rce6 {[%clk 0:00:15.7]} 30. Re1 {[%clk 0:00:29.1]}
30... Kf7 {[%clk 0:00:08.7]} 31. Bc1 {[%clk 0:00:20.9]} 31... bxc3 {[%clk
0:00:02.8]} 32. Rge4 {[%clk 0:00:20.9]} 32... Qf3 {[%clk 0:00:01.8]} 33. Qxc4
{[%clk 0:00:18.9]} 1-0

[Event "*** SCC Grand Prix: Titled Tuesday Blitz"]
[Site "Chess.com"]
[Date "2020.07.07"]
[Round "10"]
[White "UKR_Master"]
[Black "grandemestregringo"]
[Result "0-1"]
[WhiteElo "2329"]
[BlackElo "2505"]
[TimeControl "180+1"]
[EndTime "11:58:00 PDT"]
[Termination "grandemestregringo won by resignation"]

1. e4 {[%clk 0:03:00.9]} 1... e5 {[%clk 0:02:56]} 2. Nf3 {[%clk 0:03:00.9]} 2...
Nc6 {[%clk 0:02:56.9]} 3. Bb5 {[%clk 0:03:01.5]} 3... a6 {[%clk 0:02:56.7]} 4.
Ba4 {[%clk 0:03:01.9]} 4... Nf6 {[%clk 0:02:55.2]} 5. O-O {[%clk 0:03:02.2]}
5... Be7 {[%clk 0:02:54]} 6. Re1 {[%clk 0:03:02.8]} 6... b5 {[%clk 0:02:54.5]}
7. Bb3 {[%clk 0:03:02.7]} 7... d6 {[%clk 0:02:55.1]} 8. c3 {[%clk 0:03:01.3]}
8... O-O {[%clk 0:02:55.6]} 9. h3 {[%clk 0:03:00.6]} 9... Nb8 {[%clk 0:02:50.9]}
10. d4 {[%clk 0:03:00.6]} 10... Nbd7 {[%clk 0:02:50.9]} 11. Bc2 {[%clk
0:03:01.2]} 11... Bb7 {[%clk 0:02:50.6]} 12. b3 {[%clk 0:03:01.2]} 12... Re8
{[%clk 0:02:50.8]} 13. Bb2 {[%clk 0:03:01.4]} 13... Bf8 {[%clk 0:02:43.9]} 14.
Nbd2 {[%clk 0:03:01.3]} 14... Rc8 {[%clk 0:02:36.3]} 15. a4 {[%clk 0:02:57]}
15... c6 {[%clk 0:02:25.7]} 16. Nf1 {[%clk 0:02:49.7]} 16... g6 {[%clk
0:02:22.5]} 17. Ng3 {[%clk 0:02:46]} 17... Bg7 {[%clk 0:02:22.1]} 18. Qd2 {[%clk
0:02:46.2]} 18... Qc7 {[%clk 0:02:19.4]} 19. axb5 {[%clk 0:01:57]} 19... axb5
{[%clk 0:02:01.5]} 20. Rad1 {[%clk 0:01:56.9]} 20... Red8 {[%clk 0:02:00.7]} 21.
Qe3 {[%clk 0:01:53.2]} 21... Ra8 {[%clk 0:01:52.2]} 22. Ra1 {[%clk 0:01:52.9]}
22... h5 {[%clk 0:01:47.4]} 23. Ne2 {[%clk 0:01:46.9]} 23... c5 {[%clk
0:01:43.2]} 24. d5 {[%clk 0:01:43.4]} 24... c4 {[%clk 0:01:41.3]} 25. b4 {[%clk
0:01:43.3]} 25... Kf8 {[%clk 0:01:26.1]} 26. Ng5 {[%clk 0:01:30.4]} 26... Ke7
{[%clk 0:01:24.9]} 27. Rf1 {[%clk 0:01:24.1]} 27... Bh6 {[%clk 0:01:22.4]} 28.
Qg3 {[%clk 0:01:20.8]} 28... Qb6 {[%clk 0:01:08.6]} 29. Kh2 {[%clk 0:01:17.1]}
29... h4 {[%clk 0:00:51.3]} 30. Qxh4 {[%clk 0:01:10.5]} 30... Rh8 {[%clk
0:00:51.7]} 31. f4 {[%clk 0:01:03]} 31... Rxa1 {[%clk 0:00:49.7]} 32. Bxa1
{[%clk 0:01:02.1]} 32... Qe3 {[%clk 0:00:47.6]} 33. fxe5 {[%clk 0:00:53.1]}
33... dxe5 {[%clk 0:00:30.4]} 34. d6+ {[%clk 0:00:46.5]} 34... Ke8 {[%clk
0:00:30.5]} 35. Ne6 {[%clk 0:00:21.5]} 35... Bf4+ {[%clk 0:00:20.6]} 36. Rxf4
{[%clk 0:00:21]} 36... Rxh4 {[%clk 0:00:20.5]} 37. Rxh4 {[%clk 0:00:21.4]} 37...
fxe6 {[%clk 0:00:20.5]} 38. Ng3 {[%clk 0:00:20.4]} 38... Qc1 {[%clk 0:00:20.3]}
39. Bd1 {[%clk 0:00:14.7]} 39... Qxd1 {[%clk 0:00:19.7]} 40. Rh7 {[%clk
0:00:14.9]} 40... Nxh7 {[%clk 0:00:18.4]} 0-1

[Event "*** SCC Grand Prix: Titled Tuesday Blitz"]
[Site "Chess.com"]
[Date "2020.07.07"]
[Round "10"]
[White "plumalka"]
[Black "Vesper2018"]
[Result "0-1"]
[WhiteElo "2398"]
[BlackElo "2544"]
[TimeControl "180+1"]
[EndTime "11:58:00 PDT"]
[Termination "Vesper2018 won by resignation"]

1. e4 {[%clk 0:03:00.9]} 1... c5 {[%clk 0:02:59.8]} 2. Nf3 {[%clk 0:03:00.9]}
2... d6 {[%clk 0:03:00.1]} 3. d4 {[%clk 0:03:01.5]} 3... cxd4 {[%clk 0:03:00.3]}
4. Nxd4 {[%clk 0:03:02.4]} 4... Nf6 {[%clk 0:03:00.8]} 5. Nc3 {[%clk 0:03:02.9]}
5... a6 {[%clk 0:03:01.2]} 6. Nb3 {[%clk 0:03:02.9]} 6... Nc6 {[%clk 0:02:43.8]}
7. Be2 {[%clk 0:02:52.6]} 7... e6 {[%clk 0:02:35.3]} 8. g4 {[%clk 0:02:50.5]}
8... h6 {[%clk 0:02:28.2]} 9. h4 {[%clk 0:02:49.7]} 9... Be7 {[%clk 0:02:26]}
10. Be3 {[%clk 0:02:48.1]} 10... Nd7 {[%clk 0:02:23.4]} 11. Qd2 {[%clk
0:02:42.2]} 11... b5 {[%clk 0:02:19.5]} 12. O-O-O {[%clk 0:02:40.7]} 12... Nde5
{[%clk 0:02:14]} 13. g5 {[%clk 0:02:34.8]} 13... h5 {[%clk 0:02:01]} 14. f4
{[%clk 0:02:32.5]} 14... Nc4 {[%clk 0:01:52.1]} 15. Bxc4 {[%clk 0:02:32.2]}
15... bxc4 {[%clk 0:01:52.5]} 16. Nd4 {[%clk 0:02:32.2]} 16... Nxd4 {[%clk
0:01:22.5]} 17. Qxd4 {[%clk 0:02:30.2]} 17... O-O {[%clk 0:01:19.2]} 18. f5
{[%clk 0:02:15.5]} 18... exf5 {[%clk 0:01:13.8]} 19. Nd5 {[%clk 0:02:10]} 19...
Re8 {[%clk 0:00:51.2]} 20. Qxc4 {[%clk 0:02:06]} 20... Be6 {[%clk 0:00:42.5]}
21. exf5 {[%clk 0:02:05.4]} 21... Bxf5 {[%clk 0:00:42.3]} 22. Rhf1 {[%clk
0:01:44.4]} 22... Bg6 {[%clk 0:00:42.3]} 23. Nf4 {[%clk 0:01:41.9]} 23... Rc8
{[%clk 0:00:42.2]} 24. Qd5 {[%clk 0:01:16.6]} 24... Rxc2+ {[%clk 0:00:41.5]} 25.
Kb1 {[%clk 0:01:16.6]} 25... Rc5+ {[%clk 0:00:32.7]} 26. Ka1 {[%clk 0:01:03.7]}
26... Rxd5 {[%clk 0:00:32.4]} 27. Nxd5 {[%clk 0:01:04.6]} 27... Qa5 {[%clk
0:00:26.2]} 28. Bb6 {[%clk 0:00:58.9]} 28... Qa4 {[%clk 0:00:24.6]} 29. Nc3
{[%clk 0:00:55.4]} 29... Qc6 {[%clk 0:00:24.1]} 30. Bd4 {[%clk 0:00:55.7]} 30...
Bf8 {[%clk 0:00:23.1]} 31. Rf2 {[%clk 0:00:53.2]} 31... d5 {[%clk 0:00:23.1]}
32. Rfd2 {[%clk 0:00:51.3]} 32... Bb4 {[%clk 0:00:21.7]} 33. a3 {[%clk
0:00:49.5]} 33... Bxc3 {[%clk 0:00:21.6]} 34. Bxc3 {[%clk 0:00:50.4]} 34... Be4
{[%clk 0:00:22]} 35. Rf2 {[%clk 0:00:49]} 35... d4 {[%clk 0:00:19.9]} 36. Rxd4
{[%clk 0:00:47.1]} 36... Bd5 {[%clk 0:00:19.9]} 37. g6 {[%clk 0:00:42.5]} 37...
fxg6 {[%clk 0:00:19.2]} 38. Rf1 {[%clk 0:00:40.3]} 38... Bf7 {[%clk 0:00:19.3]}
39. Rg1 {[%clk 0:00:38.3]} 39... Qe6 {[%clk 0:00:18.8]} 40. Kb1 {[%clk
0:00:38.1]} 40... Qa2+ {[%clk 0:00:18.9]} 41. Kc1 {[%clk 0:00:38.3]} 41... Qa1+
{[%clk 0:00:18]} 42. Kc2 {[%clk 0:00:38.6]} 42... Qxg1 {[%clk 0:00:17.9]} 43.
Rd2 {[%clk 0:00:36.8]} 43... Qg4 {[%clk 0:00:17.2]} 44. Rd4 {[%clk 0:00:36.2]}
44... Qf5+ {[%clk 0:00:17.2]} 45. Kc1 {[%clk 0:00:34.8]} 45... Bb3 {[%clk
0:00:17.3]} 0-1

[Event "*** SCC Grand Prix: Titled Tuesday Blitz"]
[Site "Chess.com"]
[Date "2020.07.07"]
[Round "10"]
[White "fabianvivasz"]
[Black "TST2014"]
[Result "1-0"]
[WhiteElo "2258"]
[BlackElo "2454"]
[TimeControl "180+1"]
[EndTime "11:58:00 PDT"]
[Termination "fabianvivasz won on time"]

1. e4 {[%clk 0:03:00.9]} 1... c5 {[%clk 0:02:54.8]} 2. Nf3 {[%clk 0:03:00.4]}
2... Nc6 {[%clk 0:02:54.2]} 3. d4 {[%clk 0:02:59.2]} 3... cxd4 {[%clk
0:02:54.4]} 4. Nxd4 {[%clk 0:03:00]} 4... Nf6 {[%clk 0:02:54.9]} 5. Nc3 {[%clk
0:02:59.5]} 5... d6 {[%clk 0:02:55.4]} 6. Bg5 {[%clk 0:02:58.8]} 6... e6 {[%clk
0:02:55.5]} 7. Qd2 {[%clk 0:02:57.8]} 7... a6 {[%clk 0:02:55.5]} 8. Nxc6 {[%clk
0:02:57]} 8... bxc6 {[%clk 0:02:55.4]} 9. O-O-O {[%clk 0:02:57.7]} 9... e5
{[%clk 0:02:45.3]} 10. f4 {[%clk 0:02:48]} 10... Be7 {[%clk 0:02:38.6]} 11. Bxf6
{[%clk 0:02:33.7]} 11... gxf6 {[%clk 0:02:37]} 12. Bc4 {[%clk 0:02:25.1]} 12...
Bg4 {[%clk 0:02:28.6]} 13. Rdf1 {[%clk 0:02:18]} 13... Be6 {[%clk 0:02:26.5]}
14. Bxe6 {[%clk 0:02:15.5]} 14... fxe6 {[%clk 0:02:26.1]} 15. f5 {[%clk
0:02:13.7]} 15... exf5 {[%clk 0:02:11.1]} 16. Rxf5 {[%clk 0:02:14.6]} 16... Qb6
{[%clk 0:02:02.2]} 17. Qh6 {[%clk 0:01:59.6]} 17... O-O-O {[%clk 0:01:59.8]} 18.
Qg7 {[%clk 0:01:41.1]} 18... Qc7 {[%clk 0:01:52.2]} 19. Rd1 {[%clk 0:01:21]}
19... Rdg8 {[%clk 0:01:43.6]} 20. Qh6 {[%clk 0:01:08.5]} 20... Rxg2 {[%clk
0:01:39.9]} 21. Qh3 {[%clk 0:01:08.4]} 21... Rgg8 {[%clk 0:01:06]} 22. Rxe5+
{[%clk 0:00:52.3]} 22... Qd7 {[%clk 0:01:02.7]} 23. Rf5 {[%clk 0:00:38.6]} 23...
Rg5 {[%clk 0:00:52]} 24. Qd3 {[%clk 0:00:36.1]} 24... Rxf5 {[%clk 0:00:43.8]}
25. exf5 {[%clk 0:00:23.3]} 25... Kb7 {[%clk 0:00:40.5]} 26. Re1 {[%clk
0:00:20.4]} 26... d5 {[%clk 0:00:38.5]} 27. Na4 {[%clk 0:00:12.9]} 27... Bd6
{[%clk 0:00:36]} 28. Qb3+ {[%clk 0:00:12.1]} 28... Ka8 {[%clk 0:00:24.2]} 29.
Nb6+ {[%clk 0:00:10.4]} 1-0

[Event "*** SCC Grand Prix: Titled Tuesday Blitz"]
[Site "Chess.com"]
[Date "2020.07.07"]
[Round "10"]
[White "Kopytkin"]
[Black "tsvet2005"]
[Result "0-1"]
[WhiteElo "2461"]
[BlackElo "2635"]
[TimeControl "180+1"]
[EndTime "11:58:07 PDT"]
[Termination "tsvet2005 won on time"]

1. e4 {[%clk 0:03:00.9]} 1... c5 {[%clk 0:03:00.4]} 2. d4 {[%clk 0:03:00.7]}
2... cxd4 {[%clk 0:03:01.3]} 3. c3 {[%clk 0:03:00.8]} 3... dxc3 {[%clk
0:03:02.1]} 4. Nxc3 {[%clk 0:03:01.4]} 4... Nc6 {[%clk 0:03:02.7]} 5. Nf3 {[%clk
0:03:01.9]} 5... e6 {[%clk 0:03:03.3]} 6. Bc4 {[%clk 0:03:02.5]} 6... a6 {[%clk
0:03:03.9]} 7. O-O {[%clk 0:03:00.9]} 7... Nge7 {[%clk 0:03:04.5]} 8. Bg5 {[%clk
0:03:00]} 8... h6 {[%clk 0:03:04.1]} 9. Bh4 {[%clk 0:03:00.3]} 9... g5 {[%clk
0:03:04.2]} 10. Bg3 {[%clk 0:03:00.6]} 10... Ng6 {[%clk 0:03:04.6]} 11. Re1
{[%clk 0:02:56.6]} 11... b5 {[%clk 0:02:54.8]} 12. Bb3 {[%clk 0:02:51.6]} 12...
d6 {[%clk 0:02:47.2]} 13. Rc1 {[%clk 0:02:41.8]} 13... Bb7 {[%clk 0:02:40.8]}
14. Nd4 {[%clk 0:02:06.3]} 14... Be7 {[%clk 0:02:07.4]} 15. Nxe6 {[%clk
0:01:42.5]} 15... fxe6 {[%clk 0:02:02.6]} 16. Bxe6 {[%clk 0:01:43.4]} 16... Kf8
{[%clk 0:01:06]} 17. Nd5 {[%clk 0:01:32.1]} 17... Kg7 {[%clk 0:01:03.7]} 18. Qd2
{[%clk 0:01:15.4]} 18... Nce5 {[%clk 0:00:56.5]} 19. Rc3 {[%clk 0:00:56.3]}
19... Kh7 {[%clk 0:00:50.5]} 20. Rec1 {[%clk 0:00:55.5]} 20... Nc4 {[%clk
0:00:42.6]} 21. Qe2 {[%clk 0:00:47.2]} 21... Bc8 {[%clk 0:00:24.8]} 22. Bxc8
{[%clk 0:00:42.9]} 22... Rxc8 {[%clk 0:00:25.7]} 23. b3 {[%clk 0:00:43.4]} 23...
Nb6 {[%clk 0:00:25.9]} 24. Nc7 {[%clk 0:00:25.5]} 24... Qd7 {[%clk 0:00:20.6]}
25. e5 {[%clk 0:00:17.5]} 25... dxe5 {[%clk 0:00:18.5]} 26. Rd1 {[%clk
0:00:14.4]} 26... Qf5 {[%clk 0:00:17.2]} 27. Rf3 {[%clk 0:00:08.4]} 27... Nf4
{[%clk 0:00:11.6]} 28. Bxf4 {[%clk 0:00:06.8]} 28... gxf4 {[%clk 0:00:12.5]} 29.
g3 {[%clk 0:00:04.1]} 29... Rhd8 {[%clk 0:00:11.9]} 30. Rxd8 {[%clk 0:00:02.8]}
30... Bxd8 {[%clk 0:00:11.1]} 31. Nxa6 {[%clk 0:00:03.7]} 31... Rc1+ {[%clk
0:00:08.7]} 32. Kg2 {[%clk 0:00:03.9]} 32... Nd5 {[%clk 0:00:08.7]} 0-1

[Event "*** SCC Grand Prix: Titled Tuesday Blitz"]
[Site "Chess.com"]
[Date "2020.07.07"]
[Round "10"]
[White "Marty435"]
[Black "Omk124"]
[Result "0-1"]
[WhiteElo "2501"]
[BlackElo "2390"]
[TimeControl "180+1"]
[EndTime "11:58:07 PDT"]
[Termination "Omk124 won by checkmate"]

1. d4 {[%clk 0:03:00.9]} 1... Nf6 {[%clk 0:02:57.3]} 2. Bf4 {[%clk 0:03:00.5]}
2... g6 {[%clk 0:02:56.9]} 3. Nc3 {[%clk 0:03:00.3]} 3... Bg7 {[%clk 0:02:56.9]}
4. e4 {[%clk 0:03:00.1]} 4... d6 {[%clk 0:02:57.1]} 5. Qd2 {[%clk 0:03:00]} 5...
c6 {[%clk 0:02:53]} 6. O-O-O {[%clk 0:02:59.8]} 6... O-O {[%clk 0:02:46.5]} 7.
Bh6 {[%clk 0:02:58.9]} 7... b5 {[%clk 0:02:45.2]} 8. f3 {[%clk 0:02:56.4]} 8...
a5 {[%clk 0:02:42.8]} 9. h4 {[%clk 0:02:50.4]} 9... b4 {[%clk 0:02:41.1]} 10.
Nce2 {[%clk 0:02:45]} 10... Nbd7 {[%clk 0:02:35]} 11. h5 {[%clk 0:02:36.1]}
11... Qc7 {[%clk 0:02:25.6]} 12. g4 {[%clk 0:02:16.6]} 12... c5 {[%clk
0:01:59.2]} 13. Kb1 {[%clk 0:01:59.6]} 13... cxd4 {[%clk 0:01:55.8]} 14. Nxd4
{[%clk 0:01:58.6]} 14... Ne5 {[%clk 0:01:55.5]} 15. hxg6 {[%clk 0:01:53.8]}
15... fxg6 {[%clk 0:01:46.7]} 16. Bxg7 {[%clk 0:01:53.5]} 16... Kxg7 {[%clk
0:01:47.6]} 17. Qh6+ {[%clk 0:01:54]} 17... Kg8 {[%clk 0:01:47.8]} 18. g5 {[%clk
0:01:54.4]} 18... Nh5 {[%clk 0:01:47.6]} 19. Bh3 {[%clk 0:01:38.6]} 19... Rf7
{[%clk 0:01:43.9]} 20. Bxc8 {[%clk 0:01:25.8]} 20... Rxc8 {[%clk 0:01:44.8]} 21.
Rxh5 {[%clk 0:01:17.7]} 21... gxh5 {[%clk 0:01:42.9]} 22. Qxh5 {[%clk
0:01:13.1]} 22... Qc4 {[%clk 0:01:34.2]} 23. Qh3 {[%clk 0:00:52.4]} 23... Ng6
{[%clk 0:01:26.6]} 24. b3 {[%clk 0:00:46.5]} 24... Qc5 {[%clk 0:01:17.3]} 25.
Nge2 {[%clk 0:00:42.9]} 25... e5 {[%clk 0:01:15.5]} 26. Qe6 {[%clk 0:00:25]}
26... exd4 {[%clk 0:01:12.3]} 27. Nxd4 {[%clk 0:00:25.9]} 27... Nf4 {[%clk
0:01:11.6]} 28. Qg4 {[%clk 0:00:22.9]} 28... Ne2 {[%clk 0:00:39.5]} 29. g6
{[%clk 0:00:21.5]} 29... Nxd4 {[%clk 0:00:20.3]} 30. gxf7+ {[%clk 0:00:20.4]}
30... Kxf7 {[%clk 0:00:20.2]} 31. Qf4+ {[%clk 0:00:11]} 31... Ke8 {[%clk
0:00:20.2]} 32. Rd2 {[%clk 0:00:07.2]} 32... Nxc2 {[%clk 0:00:19.7]} 33. Rd1
{[%clk 0:00:01.3]} 33... Na3+ {[%clk 0:00:19.6]} 34. Ka1 {[%clk 0:00:01.7]}
34... Qc3# {[%clk 0:00:19.1]} 0-1